[Event "44th Chess Olympiad Women 2022"]
[Site "Chennai"]
[Date "2022.08.09"]
[Round "11.9"]
[White "Garcia Martin, Marta"]
[Black "Eric, Jovana"]
[Result "0-1"]
[ECO "B30"]
[WhiteElo "2305"]
[BlackElo "2271"]
[Annotator "RC"]
[PlyCount "186"]
[EventDate "2022.07.29"]
[EventType "team-tourn"]
[EventCountry "IND"]
[SourceTitle "playchess.com"]
[Source "ChessBase"]
[SourceQuality "1"]
[WhiteTeam "Spain"]
[BlackTeam "Serbia"]
[WhiteTeamCountry "ESP"]
[BlackTeamCountry "SRB"]
[TimeControl "40/5400+30:1800+30"]

1. e4 {[%emt 0:00:03]} c5 {[%emt 0:00:07]} 2. Nc3 {[%emt 0:00:07]} Nc6 {[%emt 0:00:08]} 3. Nf3 {[%emt 0:01:31]} e5 {[%emt 0:00:06]} 4. Bc4 {[%emt 0:00:06]} Be7 {[%emt 0:00:13]} 5. d3 {[%emt 0:00:18]} Nf6 {[%emt 0:00:23]} 6. Ng5 {[%emt 0:11:26]} O-O {[%emt 0:00:51]} 7. h4 {[%emt 0:00:17]} Nd4 {[%emt 0:11:52]} 8. f4 {[%emt 0:35:31]} d6 {[%emt 0:27:12]} 9. Nd5 {[%emt 0:08:51]} Be6 {[%emt 0:09:41]} 10. Nxe7+ {[%emt 0:10:42]} Qxe7 {[%emt 0:00:04]} 11. fxe5 {[%emt 0:00:47]} dxe5 {[%emt 0:02:11]} 12. Nxe6 {[%emt 0:00:13]} fxe6 {[%emt 0:00:38]} 13. O-O {[%emt 0:13:29]} b5 {[%emt 0:00:49]} 14. Bb3 {[%emt 0:00:04]} c4 {[%emt 0:02:42]} 15. c3 {[%emt 0:07:49]} Nxb3 {[%emt 0:04:01]} 16. axb3 {[%emt 0:00:03]} Rad8 {[%emt 0:00:06]} 17. bxc4 {[%emt 0:00:36]} bxc4 {[%emt 0:04:58]} 18. d4 {[%emt 0:05:43]} exd4 {[%emt 0:01:08]} 19. cxd4 {[%emt 0:00:07]} Nxe4 {[%emt 0:00:19]} 20. Rxf8+ {[%emt 0:00:07]} Rxf8 {[%emt 0:00:14]} 21. Qe1 {[%emt 0:02:28]} Nf2 {[%emt 0:02:35]} 22. Bg5 {[%emt 0:00:27]} Qf7 {[%emt 0:12:58]} 23. Ra6 {[%emt 0:00:32]} h6 {[%emt 0:00:11]} 24. Bd2 {[%emt 0:00:38]} Kh8 {[%emt 0:02:10]} 25. Qxe6 {[%emt 0:00:20]} Qh5 {[%emt 0:00:37]} 26. Qe7 {[%emt 0:00:41]} Re8 {[%emt 0:04:09]} 27. Rxh6+ {[%emt 0:00:08]} gxh6 {[%emt 0:00:03]} 28. Qf6+ {[%emt 0:00:04]} Kh7 {[%emt 0:03:10]} 29. Qxf2 {[%emt 0:00:07]} Re4 {[%emt 0:00:37]} 30. d5 {[%emt 0:01:34]} Qxd5 {[%emt 0:02:00]} 31. Qxa7+ {[%emt 0:00:14]} Kg6 {[%emt 0:00:16]} 32. Qb6+ {[%emt 0:00:43]} Re6 {[%emt 0:01:39]} 33. Qf2 {[%emt 0:00:07]} Qe5 {[%emt 0:00:32]} 34. g4 {[%emt 0:01:03]} h5 {[%emt 0:01:48]} 35. gxh5+ {[%emt 0:00:31]} Kxh5 {[%emt 0:02:15]} 36. Bg5 {[%emt 0:00:29]} Qe1+ {[%emt 0:01:27]} 37. Qxe1 {[%emt 0:00:05]} Rxe1+ {[%emt 0:00:05]} 38. Kf2 {[%emt 0:00:23]} Re6 {[%emt 0:00:08]} 39. Kf3 {[%emt 0:00:50]} Rb6 {[%emt 0:01:16]} 40. Bc1 {[%emt 0:00:06]} Kxh4 {[%emt 0:00:05]} 41. Ke4 {[%emt 0:30:56]} Rd6 {[%emt 0:30:05]} 42. Be3 {[%emt 0:00:00]} Kg4 {[%emt 0:00:00]} 43. Bd4 {[%emt 0:00:00]} Rd7 {[%emt 0:00:00]} 44. Be5 {[%emt 0:00:00]} Kh3 {[%emt 0:00:00]} 45. Kf3 {[%emt 0:00:00]} Rd8 {[%emt 0:00:00]} 46. Bf4 {[%emt 0:00:00]} Rf8 {[%emt 0:00:00]} 47. Ke4 {[%emt 0:00:00]} Kg2 {[%emt 0:00:00]} 48. Bd6 {[%emt 0:00:00]} Rd8 {[%emt 0:00:00]} 49. Kd5 {[%emt 0:00:00]} Kf3 {[%emt 0:00:00]} 50. Kc5 {[%emt 0:00:00]} Ke4 {[%emt 0:00:00]} 51. Be7 {[%emt 0:00:00]} Rc8+ {[%emt 0:00:00]} 52. Kb4 {[%emt 0:00:00]} Kd3 {[%emt 0:00:00]} 53. Bf6 {[%emt 0:00:00]} Rf8 {[%emt 0:00:00]} 54. Bc3 {[%emt 0:00:00]} Rf4 {[%emt 0:00:00]} 55. Kc5 {[%emt 0:00:00]} Kc2 {[%emt 0:00:00]} 56. Bg7 {[%emt 0:00:00]} Kb3 {[%emt 0:00:00]} 57. Bc3 {[%emt 0:00:02]} Rf5+ {[%emt 0:00:00]} 58. Kc6 {[%emt 0:00:56]} Rg5 {[%emt 0:00:00]} 59. Kb6 {[%emt 0:02:30]} Rg3 {[%emt 0:00:00]} 60. Bd4 {[%emt 0:00:51]} Kb4 {[%emt 0:00:00]} 61. Bc5+ {[%emt 0:00:26]} Ka4 {[%emt 0:00:00]} 62. Bd4 {[%emt 0:00:04]} Rd3 {[%emt 0:03:30]} 63. Kc5 {[%emt 0:00:55]} Kb3 {[%emt 0:00:08]} 64. Be5 {[%emt 0:01:53]} Rh3 {[%emt 0:01:02]} 65. Bd4 {[%emt 0:00:27]} Rh5+ {[%emt 0:00:28]} 66. Kc6 {[%emt 0:00:20]} Kc2 {[%emt 0:06:21]} 67. Bc3 {[%emt 0:00:44]} Kd3 {[%emt 0:00:13]} 68. Kd6 {[%emt 0:01:46]} Ke4 {[%emt 0:01:08]} 69. Kc6 {[%emt 0:00:05]} Rh6+ {[%emt 0:00:23]} 70. Kc5 {[%emt 0:00:19]} Kd3 {[%emt 0:00:17]} 71. Kd5 {[%emt 0:00:42]} Rb6 {[%emt 0:00:21]} 72. Kc5 {[%emt 0:00:00]} Rb8 {[%emt 0:00:14]} 73. Be5 {[%emt 0:01:32]} Rc8+ {[%emt 0:00:11]} 74. Kd5 {[%emt 0:00:55]} Kc2 {[%emt 0:00:19]} 75. Bc3 {[%emt 0:00:32]} Kb3 {[%emt 0:00:04]} 76. Bf6 {[%emt 0:01:16]} Kb4 {[%emt 0:00:13]} 77. Be7+ {[%emt 0:01:24]} Kb3 {[%emt 0:00:37]} 78. Bf6 {[%emt 0:00:06]} Rc7 {[%emt 0:00:24]} 79. Be5 {[%emt 0:00:27]} Re7 {[%emt 0:01:27]} 80. Bf6 {[%emt 0:00:45]} Re8 {[%emt 0:00:09]} 81. Bc3 {[%emt 0:00:55]} Rc8 {[%emt 0:00:06]} 82. Bf6 {[%emt 0:00:06]} Ka4 {[%emt 0:00:21]} 83. Kd4 {[%emt 0:00:55]} Kb4 {[%emt 0:00:04]} 84. Kd5 {[%emt 0:00:38]} Rc7 {[%emt 0:00:23]} 85. Bc3+ {[%emt 0:00:31]} Kb5 {[%emt 0:00:09]} 86. Kd6 {[%emt 0:00:29]} Rc8 {[%emt 0:00:11]} 87. Bf6 {[%emt 0:00:40]} Rc6+ {[%emt 0:00:10]} 88. Ke5 {[%emt 0:00:21]} Kb4 {[%emt 0:00:03]} 89. Bg7 {[%emt 0:00:19]} Rc7 {[%emt 0:01:11]} 90. Bf6 {[%emt 0:00:42]} Rd7 {[%emt 0:00:04]} 91. Ke4 {[%emt 0:00:31]} Rd3 {[%emt 0:00:05]} 92. Bg7 {[%emt 0:00:21]} Kb3 {[%emt 0:00:04]} 93. Bf6 {[%emt 0:00:12]} Rd2 {[%emt 0:10:51]} 0-1

[Event "44th Chess Olympiad Women 2022"]
[Site "Chennai"]
[Date "2022.08.09"]
[Round "11.9"]
[White "Gajcin, Marina"]
[Black "Eizaguerri Floris, Maria"]
[Result "1-0"]
[ECO "C50"]
[WhiteElo "2271"]
[BlackElo "2176"]
[Annotator "RC"]
[PlyCount "143"]
[EventDate "2022.07.29"]
[EventType "team-tourn"]
[EventCountry "IND"]
[SourceTitle "playchess.com"]
[Source "ChessBase"]
[SourceQuality "1"]
[WhiteTeam "Serbia"]
[BlackTeam "Spain"]
[WhiteTeamCountry "SRB"]
[BlackTeamCountry "ESP"]
[TimeControl "40/5400+30:1800+30"]

1. e4 {[%emt 0:00:05]} e5 {[%emt 0:00:07]} 2. Nf3 {[%emt 0:00:06]} Nc6 {[%emt 0:00:06]} 3. Bc4 {[%emt 0:01:39]} Bc5 {[%emt 0:00:18]} 4. d3 {[%emt 0:00:46]} Nf6 {[%emt 0:00:19]} 5. a4 {[%emt 0:00:10]} d6 {[%emt 0:01:47]} 6. c3 {[%emt 0:03:10]} a6 {[%emt 0:00:17]} 7. Nbd2 {[%emt 0:03:22]} Ba7 {[%emt 0:00:27]} 8. h3 {[%emt 0:06:06]} O-O {[%emt 0:01:22]} 9. O-O {[%emt 0:00:15]} h6 {[%emt 0:00:06]} 10. Re1 {[%emt 0:02:40]} Re8 {[%emt 0:01:38]} 11. a5 {[%emt 0:03:46]} Be6 {[%emt 0:01:06]} 12. Bxe6 {[%emt 0:10:57]} Rxe6 {[%emt 0:00:07]} 13. Nf1 {[%emt 0:05:16]} Ne7 {[%emt 0:04:18]} 14. Ng3 {[%emt 0:08:46]} Ng6 {[%emt 0:02:51]} 15. Nf5 {[%emt 0:07:48]} d5 {[%emt 0:07:23]} 16. Qc2 {[%emt 0:04:16]} Qd7 {[%emt 0:06:47]} 17. g3 {[%emt 0:07:30]} Rd8 {[%emt 0:03:41]} 18. Be3 {[%emt 0:02:48]} Bxe3 {[%emt 0:05:50]} 19. Rxe3 {[%emt 0:00:04]} Ree8 {[%emt 0:06:19]} 20. Re2 {[%emt 0:04:36]} Qe6 {[%emt 0:08:36]} 21. c4 {[%emt 0:02:23]} c6 {[%emt 0:02:01]} 22. b4 {[%emt 0:04:55]} Rd7 {[%emt 0:02:05]} 23. Kh2 {[%emt 0:03:16]} Red8 {[%emt 0:01:07]} 24. Rae1 {[%emt 0:01:49]} dxe4 {[%emt 0:14:58]} 25. dxe4 {[%emt 0:00:04]} Ne8 {[%emt 0:00:17]} 26. Rd2 {[%emt 0:02:46]} Ne7 {[%emt 0:05:40]} 27. Nxe7+ {[%emt 0:03:00]} Qxe7 {[%emt 0:00:05]} 28. Red1 {[%emt 0:01:14]} f6 {[%emt 0:03:33]} 29. Nh4 {[%emt 0:00:56]} Rxd2 {[%emt 0:03:57]} 30. Rxd2 {[%emt 0:00:02]} Rxd2 {[%emt 0:00:50]} 31. Qxd2 {[%emt 0:00:01]} Qd6 {[%emt 0:00:08]} 32. Qa2 {[%emt 0:03:12]} c5 {[%emt 0:04:12]} 33. bxc5 {[%emt 0:01:09]} Qxc5 {[%emt 0:00:10]} 34. Nf5 {[%emt 0:00:31]} Kh7 {[%emt 0:09:32]} 35. Kg2 {[%emt 0:00:18]} Nd6 {[%emt 0:03:17]} 36. Nxd6 {[%emt 0:00:36]} Qxd6 {[%emt 0:00:02]} 37. Qb1 {[%emt 0:01:18]} Qc7 {[%emt 0:02:44]} 38. Qb4 {[%emt 0:00:36]} Kg8 {[%emt 0:00:23]} 39. g4 {[%emt 0:05:24]} Kf7 {[%emt 0:00:21]} 40. Kf3 {[%emt 0:02:05]} Qd7 {[%emt 0:00:53]} 41. Ke2 {[%emt 0:06:56]} Ke8 {[%emt 0:10:31]} 42. Qc5 {[%emt 0:04:46]} Kd8 {[%emt 0:04:54]} 43. Ke3 {[%emt 0:01:40]} h5 {[%emt 0:08:03]} 44. gxh5 {[%emt 0:10:18]} Qxh3+ {[%emt 0:00:05]} 45. Kd2 {[%emt 0:00:09]} Qd7+ {[%emt 0:02:51]} 46. Kc3 {[%emt 0:00:47]} Qe8 {[%emt 0:04:42]} 47. Kb4 {[%emt 0:02:55]} Kd7 {[%emt 0:00:07]} 48. Qb6 {[%emt 0:01:59]} Qf8+ {[%emt 0:02:32]} 49. c5 {[%emt 0:01:03]} Kc8 {[%emt 0:00:05]} 50. Qe6+ {[%emt 0:01:12]} Kc7 {[%emt 0:00:04]} 51. Kc4 {[%emt 0:00:44]} Qh8 {[%emt 0:00:46]} 52. Qd6+ {[%emt 0:01:05]} Kc8 {[%emt 0:00:04]} 53. c6 {[%emt 0:00:09]} Qe8 {[%emt 0:01:23]} 54. cxb7+ {[%emt 0:00:28]} Kxb7 {[%emt 0:00:04]} 55. Qb6+ {[%emt 0:00:04]} Kc8 {[%emt 0:00:19]} 56. Qxa6+ {[%emt 0:00:06]} Kc7 {[%emt 0:00:15]} 57. Qb6+ {[%emt 0:01:49]} Kc8 {[%emt 0:00:05]} 58. Qc5+ {[%emt 0:00:51]} Kd8 {[%emt 0:00:05]} 59. Qd6+ {[%emt 0:00:09]} Kc8 {[%emt 0:00:07]} 60. Kc5 {[%emt 0:01:25]} Qf7 {[%emt 0:00:43]} 61. a6 {[%emt 0:00:45]} Qa7+ {[%emt 0:01:38]} 62. Qb6 {[%emt 0:00:24]} Qe7+ {[%emt 0:00:16]} 63. Kb5 {[%emt 0:00:12]} Qf7 {[%emt 0:00:20]} 64. Qc5+ {[%emt 0:01:09]} Kb8 {[%emt 0:00:09]} 65. Qd6+ {[%emt 0:00:44]} Ka7 {[%emt 0:01:32]} 66. Qb6+ {[%emt 0:00:35]} Ka8 {[%emt 0:00:03]} 67. Kc5 {[%emt 0:00:59]} Qe7+ {[%emt 0:00:20]} 68. Qd6 {[%emt 0:00:12]} Qa7+ {[%emt 0:00:16]} 69. Kb5 {[%emt 0:00:04]} f5 {[%emt 0:02:09]} 70. Qc6+ {[%emt 0:00:17]} Kb8 {[%emt 0:00:05]} 71. Qe8+ {[%emt 0:00:02]} Kc7 {[%emt 0:00:06]} 72. Qe7+ {[%emt 0:00:04]} 1-0

[Event "44th Chess Olympiad Women 2022"]
[Site "Chennai"]
[Date "2022.08.09"]
[Round "11.10"]
[White "Salimova, Nurgyul"]
[Black "Efroimski, Marsel"]
[Result "1/2-1/2"]
[ECO "A43"]
[WhiteElo "2416"]
[BlackElo "2456"]
[Annotator "RC"]
[PlyCount "91"]
[EventDate "2022.07.29"]
[EventType "team-tourn"]
[EventCountry "IND"]
[SourceTitle "playchess.com"]
[Source "ChessBase"]
[SourceQuality "1"]
[WhiteTeam "Bulgaria"]
[BlackTeam "Israel"]
[WhiteTeamCountry "BUL"]
[BlackTeamCountry "ISR"]
[TimeControl "40/5400+30:1800+30"]

1. d4 {[%emt 0:00:07]} e6 {[%emt 0:00:04]} 2. Nf3 {[%emt 0:00:32]} c5 {[%emt 0:00:04]} 3. c3 {[%emt 0:01:12]} Nc6 {[%emt 0:00:17]} 4. a3 {[%emt 0:03:25]} Nf6 {[%emt 0:00:32]} 5. e3 {[%emt 0:04:33]} d5 {[%emt 0:10:41]} 6. Nbd2 {[%emt 0:01:59]} Qc7 {[%emt 0:02:22]} 7. Bd3 {[%emt 0:02:50]} b6 {[%emt 0:03:51]} 8. O-O {[%emt 0:00:44]} Bb7 {[%emt 0:00:09]} 9. e4 {[%emt 0:01:26]} dxe4 {[%emt 0:10:53]} 10. Nxe4 {[%emt 0:00:31]} cxd4 {[%emt 0:04:33]} 11. cxd4 {[%emt 0:13:36]} Be7 {[%emt 0:02:15]} 12. Qc2 {[%emt 0:05:49]} Rc8 {[%emt 0:02:46]} 13. Re1 {[%emt 0:03:28]} Na5 {[%emt 0:14:44]} 14. Qxc7 {[%emt 0:10:05]} Rxc7 {[%emt 0:00:06]} 15. Bf4 {[%emt 0:00:17]} Rd7 {[%emt 0:03:26]} 16. Bb5 {[%emt 0:21:46]} Bc6 {[%emt 0:13:40]} 17. Bxc6 {[%emt 0:01:17]} Nxc6 {[%emt 0:00:05]} 18. Rac1 {[%emt 0:00:30]} Nxd4 {[%emt 0:03:30]} 19. Rc8+ {[%emt 0:02:14]} Bd8 {[%emt 0:00:22]} 20. Nxf6+ {[%emt 0:11:24]} gxf6 {[%emt 0:00:16]} 21. Nxd4 {[%emt 0:00:13]} Rxd4 {[%emt 0:00:07]} 22. g3 {[%emt 0:00:33]} h5 {[%emt 0:08:15]} 23. Ra8 {[%emt 0:00:52]} Rd7 {[%emt 0:01:10]} 24. h4 {[%emt 0:00:25]} e5 {[%emt 0:01:44]} 25. Be3 {[%emt 0:01:06]} O-O {[%emt 0:00:44]} 26. Bh6 {[%emt 0:01:17]} Re8 {[%emt 0:00:04]} 27. Rc1 {[%emt 0:00:17]} Re6 {[%emt 0:01:00]} 28. Rcc8 {[%emt 0:01:38]} Red6 {[%emt 0:00:07]} 29. Kg2 {[%emt 0:00:58]} Kh7 {[%emt 0:00:15]} 30. Be3 {[%emt 0:00:36]} Kg6 {[%emt 0:01:08]} 31. a4 {[%emt 0:01:46]} Kf5 {[%emt 0:02:54]} 32. b4 {[%emt 0:00:44]} Ke6 {[%emt 0:02:39]} 33. a5 {[%emt 0:01:26]} bxa5 {[%emt 0:01:46]} 34. bxa5 {[%emt 0:00:07]} Bxa5 {[%emt 0:02:14]} 35. g4 {[%emt 0:04:30]} Rd8 {[%emt 0:04:40]} 36. gxh5 {[%emt 0:00:52]} Rxc8 {[%emt 0:02:00]} 37. Rxc8 {[%emt 0:00:17]} Kf5 {[%emt 0:00:27]} 38. h6 {[%emt 0:00:21]} Kg6 {[%emt 0:00:08]} 39. Rh8 {[%emt 0:00:29]} f5 {[%emt 0:02:00]} 40. Rg8+ {[%emt 0:02:59]} Kh7 {[%emt 0:00:26]} 41. Rg7+ {[%emt 0:30:03]} Kh8 {[%emt 0:30:05]} 42. Rxf7 {[%emt 0:00:00]} f4 {[%emt 0:00:00]} 43. Bxa7 {[%emt 0:00:00]} Rxh6 {[%emt 0:00:00]} 44. Kh3 {[%emt 0:00:00]} Kg8 {[%emt 0:00:00]} 45. Rf5 {[%emt 0:00:00]} Bc7 {[%emt 0:00:00]} 46. Kg4 {[%emt 0:00:00]} 1/2-1/2

[Event "44th Chess Olympiad Women 2022"]
[Site "Chennai"]
[Date "2022.08.09"]
[Round "11.10"]
[White "Belenkaya, Dina"]
[Black "Peycheva, Gergana"]
[Result "1/2-1/2"]
[ECO "B31"]
[WhiteElo "2256"]
[BlackElo "2295"]
[Annotator "RC"]
[PlyCount "167"]
[EventDate "2022.07.29"]
[EventType "team-tourn"]
[EventCountry "IND"]
[SourceTitle "playchess.com"]
[Source "ChessBase"]
[SourceQuality "1"]
[WhiteTeam "Israel"]
[BlackTeam "Bulgaria"]
[WhiteTeamCountry "ISR"]
[BlackTeamCountry "BUL"]
[TimeControl "40/5400+30:1800+30"]

1. e4 {[%emt 0:00:09]} c5 {[%emt 0:00:14]} 2. Nf3 {[%emt 0:00:09]} Nc6 {[%emt 0:00:14]} 3. Bb5 {[%emt 0:00:10]} g6 {[%emt 0:00:12]} 4. c3 {[%emt 0:00:16]} Nf6 {[%emt 0:07:11]} 5. Qe2 {[%emt 0:08:20]} Bg7 {[%emt 0:06:35]} 6. O-O {[%emt 0:01:38]} O-O {[%emt 0:03:21]} 7. d4 {[%emt 0:00:32]} d5 {[%emt 0:05:26]} 8. e5 {[%emt 0:00:10]} Ne4 {[%emt 0:01:31]} 9. Rd1 {[%emt 0:01:27]} cxd4 {[%emt 0:03:26]} 10. cxd4 {[%emt 0:00:05]} Qb6 {[%emt 0:02:17]} 11. Nc3 {[%emt 0:00:53]} Nxc3 {[%emt 0:05:44]} 12. bxc3 {[%emt 0:00:03]} Na5 {[%emt 0:01:57]} 13. Ba3 {[%emt 0:04:22]} Qc7 {[%emt 0:03:18]} 14. Nd2 {[%emt 0:11:21]} Bf5 {[%emt 0:08:18]} 15. Qf3 {[%emt 0:10:19]} Rfd8 {[%emt 0:07:35]} 16. Rac1 {[%emt 0:10:51]} a6 {[%emt 0:02:27]} 17. Be2 {[%emt 0:01:30]} Bh6 {[%emt 0:04:13]} 18. g4 {[%emt 0:02:40]} Be6 {[%emt 0:02:15]} 19. Qg3 {[%emt 0:05:06]} Nc4 {[%emt 0:07:00]} 20. Bxc4 {[%emt 0:07:53]} dxc4 {[%emt 0:00:04]} 21. f4 {[%emt 0:03:52]} f5 {[%emt 0:10:17]} 22. g5 {[%emt 0:01:45]} Bf8 {[%emt 0:01:19]} 23. h4 {[%emt 0:05:52]} Bd5 {[%emt 0:02:52]} 24. Qh2 {[%emt 0:07:12]} e6 {[%emt 0:01:24]} 25. Bxf8 {[%emt 0:00:28]} Rxf8 {[%emt 0:00:44]} 26. h5 {[%emt 0:00:37]} Rf7 {[%emt 0:01:13]} 27. Re1 {[%emt 0:03:00]} Rg7 {[%emt 0:04:14]} 28. Re3 {[%emt 0:02:26]} b5 {[%emt 0:00:53]} 29. Rh3 {[%emt 0:01:30]} Bb7 {[%emt 0:03:49]} 30. Nf1 {[%emt 0:02:27]} Qc6 {[%emt 0:01:49]} 31. Nd2 {[%emt 0:02:18]} Qc7 {[%emt 0:00:49]} 32. Re1 {[%emt 0:01:17]} Qa5 {[%emt 0:02:06]} 33. Nf1 {[%emt 0:00:35]} Kf7 {[%emt 0:00:19]} 34. Qd2 {[%emt 0:01:26]} Rd8 {[%emt 0:00:24]} 35. Ne3 {[%emt 0:02:03]} Qb6 {[%emt 0:00:20]} 36. Re2 {[%emt 0:00:54]} Be4 {[%emt 0:00:53]} 37. Reh2 {[%emt 0:00:36]} Rc8 {[%emt 0:01:17]} 38. a3 {[%emt 0:01:07]} a5 {[%emt 0:00:21]} 39. Qb2 {[%emt 0:01:22]} Qb7 {[%emt 0:00:34]} 40. Nf1 {[%emt 0:00:46]} Bf3 {[%emt 0:00:55]} 41. hxg6+ {[%emt 0:09:21]} hxg6 {[%emt 0:00:27]} 42. Nd2 {[%emt 0:04:52]} Bd5 {[%emt 0:02:39]} 43. Nf1 {[%emt 0:01:42]} Bf3 {[%emt 0:00:29]} 44. Nd2 {[%emt 0:02:25]} Bd5 {[%emt 0:00:05]} 45. Kf2 {[%emt 0:00:15]} Qb6 {[%emt 0:02:17]} 46. Rh8 {[%emt 0:04:03]} Rxh8 {[%emt 0:00:44]} 47. Rxh8 {[%emt 0:00:02]} Rg8 {[%emt 0:00:26]} 48. Rh7+ {[%emt 0:00:37]} Rg7 {[%emt 0:00:04]} 49. Rh6 {[%emt 0:00:04]} Qb7 {[%emt 0:07:21]} 50. Qb1 {[%emt 0:00:35]} Qb6 {[%emt 0:03:02]} 51. Qb2 {[%emt 0:02:38]} Qb7 {[%emt 0:00:43]} 52. Ke3 {[%emt 0:00:27]} Qb6 {[%emt 0:03:18]} 53. Nf1 {[%emt 0:00:30]} Bb7 {[%emt 0:02:45]} 54. Nd2 {[%emt 0:05:42]} Bd5 {[%emt 0:03:09]} 55. Rh2 {[%emt 0:00:26]} Kg8 {[%emt 0:00:34]} 56. Qb1 {[%emt 0:01:23]} Qb7 {[%emt 0:01:47]} 57. Qb2 {[%emt 0:03:13]} Qb6 {[%emt 0:02:31]} 58. Nf1 {[%emt 0:00:13]} Qb7 {[%emt 0:01:43]} 59. Ng3 {[%emt 0:00:19]} Bc6 {[%emt 0:00:46]} 60. Rh6 {[%emt 0:00:15]} Bg2 {[%emt 0:01:41]} 61. Qe2 {[%emt 0:00:08]} Qc6 {[%emt 0:01:49]} 62. Rh2 {[%emt 0:00:48]} Bd5 {[%emt 0:00:37]} 63. Qe1 {[%emt 0:00:43]} Qd7 {[%emt 0:00:20]} 64. Rh6 {[%emt 0:00:40]} Bc6 {[%emt 0:00:08]} 65. Qf1 {[%emt 0:00:42]} Qd5 {[%emt 0:00:49]} 66. Qe2 {[%emt 0:00:45]} Bb7 {[%emt 0:00:21]} 67. Qf1 {[%emt 0:01:04]} Bc6 {[%emt 0:00:07]} 68. Qe2 {[%emt 0:00:13]} Bb7 {[%emt 0:00:12]} 69. Rh2 {[%emt 0:00:25]} Bc6 {[%emt 0:00:36]} 70. Qd1 {[%emt 0:00:17]} Rh7 {[%emt 0:01:12]} 71. Rxh7 {[%emt 0:00:22]} Kxh7 {[%emt 0:00:01]} 72. Qe2 {[%emt 0:00:51]} Kg8 {[%emt 0:00:05]} 73. Qf2 {[%emt 0:00:33]} Kf8 {[%emt 0:01:11]} 74. Kd2 {[%emt 0:00:12]} Kg8 {[%emt 0:00:40]} 75. Kc1 {[%emt 0:01:00]} Bb7 {[%emt 0:00:45]} 76. Kb2 {[%emt 0:00:29]} Bc6 {[%emt 0:00:15]} 77. Nf1 {[%emt 0:00:11]} Qe4 {[%emt 0:01:23]} 78. Qe3 {[%emt 0:00:41]} Qh1 {[%emt 0:00:45]} 79. Nd2 {[%emt 0:00:13]} Qg2 {[%emt 0:00:29]} 80. Kc1 {[%emt 0:00:17]} Qh1+ {[%emt 0:00:05]} 81. Kb2 {[%emt 0:00:16]} Qg2 {[%emt 0:00:01]} 82. Kc1 {[%emt 0:01:14]} Qh1+ {[%emt 0:00:04]} 83. Kb2 {[%emt 0:00:08]} Qg2 {[%emt 0:00:06]} 84. Kc1 {[%emt 0:01:07]} 1/2-1/2